lending/lending_fUSD_20240710
["ID","MTS","AMOUNT","RATE_DAILY","PERIOD"]
[331678508,1720629044736,-463.3999995,0.00014,2]
[331678509,1720629044748,-728.79434185,0.00014,2]
[331678510,1720629044761,-337.52723163,0.00014,2]
[331678511,1720629044772,-7290.45079688,0.00014,2]
[331678513,1720629046124,-165.47054184,0.000139,2]
[331678514,1720629046133,-500.0,0.00013999,2]
[331678515,1720629046143,-500.0,0.00013999,2]
[331678516,1720629046152,-210.53515986,0.00013999,2]
[331678517,1720629046162,-500.0,0.00013999,2]
[331678518,1720629046171,-29007.5490947,0.00014,2]
[331678519,1720629046182,-47950.49785253,0.00014,2]
[331678520,1720629046199,-1453.2,0.00014,2]
[331678521,1720629046210,-1066.38549107,0.00014,2]
[331678522,1720629046222,-250.10479714,0.00014,2]
[331678523,1720629046234,-1297.43588202,0.00014,2]
[331678524,1720629046245,-40751.72918825,0.00014,2]
[331678525,1720629046261,-600.77925398,0.00014,2]
[331678526,1720629046273,-907.5,0.00014,2]
[331678527,1720629046285,-13296.24095148,0.00014,2]
[331678528,1720629046315,-12947.98387513,0.00014,2]
[331678529,1720629046378,-5520.89832431,0.00014,2]
[331678530,1720629046390,-1523.78274965,0.00014,2]
[331678531,1720629046401,-1006.8,0.00014,2]
[331678532,1720629046439,-8660.44168497,0.00014,2]
[331678533,1720629046451,-706.3125,0.00014,2]
[331678639,1720629270982,150.0,0.00020702,120]
[331678640,1720629398317,457.22,0.00011358,2]
[331678643,1720629451434,150.0,0.00017525,120]
[331678644,1720629511376,150.0,0.00021931,120]
[331678645,1720629573653,151.0,0.00011358,2]
[331678646,1720629574459,151.0,0.00011358,2]
[331678647,1720629575151,151.0,0.00011358,2]
[331678648,1720629575525,151.0,0.00011358,2]
[331678649,1720629575871,151.0,0.00011358,2]
[331678650,1720629576406,151.0,0.00011358,2]
[331678651,1720629576848,198.0,0.00011358,2]
[331678652,1720629606374,500.0,0.00027,120]
[331678655,1720629620324,500.0,0.00027,120]
[331678656,1720629630988,150.0,0.00021553,120]
[331678657,1720629631454,500.0,0.00027,120]
[331678658,1720629638494,500.0,0.00027,120]
[331678659,1720629649634,500.0,0.00027,120]
[331678660,1720629658692,500.0,0.00027,120]
[331678661,1720629659434,500.0,0.00027,120]
[331678662,1720629660083,500.0,0.00027,120]
[331678663,1720629667522,500.0,0.00027,120]
[331678664,1720629674749,500.0,0.00027,120]
[331678665,1720629702940,500.0,0.00027,120]
[331678666,1720629713215,314.25,0.00027,120]
[331678667,1720629717640,500.0,0.00027,120]
[331678668,1720629721849,500.0,0.00027,120]
[331678669,1720629725961,500.0,0.00027,120]
[331678670,1720629730246,500.0,0.00027,120]
[331678671,1720629736048,500.0,0.00027,120]
[331678672,1720629740414,500.0,0.00027,120]
[331678673,1720629744634,500.0,0.00027,120]
[331678674,1720629749779,500.0,0.00027,120]
[331678676,1720629856746,-871.0,0.00013199,2]
[331678677,1720630037289,434.35,0.000112,2]
[331678762,1720630111397,150.0,0.0002449,120]
[331678769,1720630187927,502.0,0.00025,60]
[331678778,1720630232003,-1500.0,0.000125,2]
[331678779,1720630232013,-167.32,0.00012965,2]
[331678780,1720630232023,-1500.0,0.00013,2]
[331678781,1720630232033,-250.0,0.00013088,2]
[331678782,1720630232045,-2893.64790771,0.00013128,2]
[331678783,1720630232059,-535.04321015,0.00013128,2]
[331678784,1720630232070,-2084.23631615,0.00013128,2]
[331678785,1720630232081,-233.52558145,0.00013152,2]
[331678786,1720630232098,-300.0,0.00013152,2]
[331678787,1720630232112,-312.92653805,0.00013152,2]
[331678788,1720630232124,-153.5478805,0.00013152,2]
[331678789,1720630232135,-218.1446644,0.00013199,2]
[331678790,1720630232148,-1545.5253356,0.00013199,2]
[331678791,1720630232158,-254.4746644,0.00013224,2]
[331678792,1720630232171,-89.3353356,0.00013224,2]
[331678793,1720630232181,-151.0,0.00013272,2]
[331678794,1720630232191,-434.35,0.00013464,2]
[331678795,1720630232201,-2000.0,0.000135,2]
[331678796,1720630232212,-412.06019932,0.0001358,2]
[331678797,1720630232223,-5409.29417662,0.00013736,2]
[331678798,1720630232233,-1631.04293426,0.00013759,2]
[331678799,1720630232242,-425.8192,0.0001386,2]
[331678800,1720630232252,-150.0,0.00013899,2]
[331678801,1720630232262,-1505.028,0.000139,2]
[331678802,1720630232271,-5153.62795119,0.000139,2]
[331678803,1720630232281,-1287.36649626,0.000139,2]
[331678804,1720630232290,-327.0059048,0.000139,2]
[331678805,1720630232301,-807.55147521,0.000139,2]
[331678806,1720630232311,-7389.9,0.000139,2]
[331678807,1720630232320,-150.0,0.00013981,2]
[331678808,1720630232331,-550.0,0.00013999,2]
[331678809,1720630232341,-318.8,0.00013999,2]
[331678810,1720630232351,-222.25,0.00013999,2]
[331678811,1720630232363,-500.0,0.00013999,2]
[331678812,1720630232373,-329.04,0.00013999,2]
[331678813,1720630232385,-449.59,0.00013999,2]
[331678814,1720630232395,-435.29,0.00013999,2]
[331678815,1720630232405,-500.0,0.00013999,2]
[331678816,1720630232415,-176.75,0.00013999,2]
[331678817,1720630232425,-1236.6,0.00013999,2]
[331678818,1720630232436,-268.06,0.00013999,2]
[331678819,1720630232448,-298.28,0.00013999,2]
[331678820,1720630232458,-369.12,0.00013999,2]
[331678821,1720630232468,-422.42,0.00013999,2]
[331678822,1720630232478,-308.15,0.00013999,2]
[331678823,1720630232488,-500.0,0.00013999,2]
[331678824,1720630232500,-500.0,0.00013999,2]
[331678825,1720630232512,-500.0,0.00013999,2]
[331678826,1720630232524,-607.31,0.00013999,2]
[331678827,1720630232534,-421.07,0.00013999,2]
[331678828,1720630232547,-500.0,0.00013999,2]
[331678829,1720630232558,-500.0,0.00013999,2]
[331678830,1720630232568,-500.0,0.00013999,2]
[331678831,1720630232578,-500.0,0.00013999,2]
[331678832,1720630232588,-500.0,0.00013999,2]
[331678833,1720630232599,-500.0,0.00013999,2]
[331678834,1720630232609,-500.0,0.00013999,2]
[331678835,1720630232620,-500.0,0.00013999,2]
[331678836,1720630232630,-500.0,0.00013999,2]
[331678837,1720630232642,-500.0,0.00013999,2]
[331678838,1720630232652,-500.0,0.00013999,2]
[331678839,1720630232663,-500.0,0.00013999,2]
[331678840,1720630232673,-509.27,0.00013999,2]
[331678841,1720630232684,-500.0,0.00013999,2]
[331678842,1720630232694,-500.0,0.00013999,2]
[331678843,1720630232704,-500.0,0.00013999,2]
[331678844,1720630232714,-500.0,0.00013999,2]
[331678845,1720630232724,-500.0,0.00013999,2]
[331678846,1720630232734,-500.0,0.00013999,2]
[331678847,1720630232744,-500.0,0.00013999,2]
[331678848,1720630232754,-500.0,0.00013999,2]
[331678849,1720630232764,-214.31,0.00013999,2]
[331678850,1720630232774,-500.0,0.00013999,2]
[331678851,1720630232784,-500.0,0.00013999,2]
[331678852,1720630232794,-500.0,0.00013999,2]
[331678853,1720630232805,-545.86,0.00013999,2]
[331678854,1720630232815,-500.0,0.00013999,2]
[331678855,1720630232825,-500.0,0.00013999,2]
[331678856,1720630232836,-500.0,0.00013999,2]
[331678857,1720630232848,-500.0,0.00013999,2]
[331678858,1720630232861,-210.99,0.00013999,2]
[331678859,1720630232872,-500.0,0.00013999,2]
[331678860,1720630232884,-500.0,0.00013999,2]
[331678861,1720630232894,-500.0,0.00013999,2]
[331678862,1720630232904,-500.0,0.00013999,2]
[331678863,1720630232914,-500.0,0.00013999,2]
[331678864,1720630232925,-500.0,0.00013999,2]
[331678865,1720630232936,-500.0,0.00013999,2]
[331678866,1720630232949,-500.0,0.00013999,2]
[331678867,1720630232959,-500.0,0.00013999,2]
[331678868,1720630232972,-500.0,0.00013999,2]
[331678869,1720630232982,-500.0,0.00013999,2]
[331678870,1720630232992,-500.0,0.00013999,2]
[331678871,1720630233002,-500.0,0.00013999,2]
[331678872,1720630233012,-500.0,0.00013999,2]
[331678873,1720630233023,-500.0,0.00013999,2]
[331678874,1720630233033,-500.0,0.00013999,2]
[331678875,1720630233043,-500.0,0.00013999,2]
[331678876,1720630233054,-500.0,0.00013999,2]
[331678877,1720630233063,-500.0,0.00013999,2]
[331678878,1720630233073,-500.0,0.00013999,2]
[331678879,1720630233083,-500.0,0.00013999,2]
[331678880,1720630233093,-500.0,0.00013999,2]
[331678881,1720630233102,-376.49,0.00013999,2]
[331678882,1720630233112,-500.0,0.00013999,2]
[331678883,1720630233123,-500.0,0.00013999,2]
[331678884,1720630233134,-500.0,0.00013999,2]
[331678885,1720630233145,-500.0,0.00013999,2]
[331678886,1720630233155,-218.65,0.00013999,2]
[331678887,1720630233165,-500.0,0.00013999,2]
[331678888,1720630233175,-500.0,0.00013999,2]
[331678889,1720630233186,-165.31,0.00013999,2]
[331678890,1720630233196,-191.09,0.00013999,2]
[331678891,1720630233206,-9304.91,0.00013999,2]
[331678892,1720630233216,-500.0,0.00013999,2]
[331678893,1720630233225,-500.0,0.00013999,2]
[331678894,1720630233236,-1166.66,0.00013999,2]
[331678895,1720630233247,-3767.49,0.00013999,2]
[331678896,1720630233259,-500.0,0.00013999,2]
[331678897,1720630233269,-500.0,0.00013999,2]
[331678898,1720630233280,-500.0,0.00013999,2]
[331678899,1720630233291,-500.0,0.00013999,2]
[331678900,1720630233301,-405.58,0.00013999,2]
[331678901,1720630233311,-256.96,0.00013999,2]
[331678902,1720630233321,-500.0,0.00013999,2]
[331678903,1720630233331,-500.0,0.00013999,2]
[331678904,1720630233341,-500.0,0.00013999,2]
[331678905,1720630233351,-500.0,0.00013999,2]
[331678906,1720630233361,-500.0,0.00013999,2]
[331678907,1720630233372,-500.0,0.00013999,2]
[331678908,1720630233381,-500.0,0.00013999,2]
[331678909,1720630233393,-500.0,0.00013999,2]
[331678910,1720630233403,-500.0,0.00013999,2]
[331678911,1720630233413,-557.48414055,0.00013999,2]
[331678912,1720630233423,-500.0,0.00013999,2]
[331678913,1720630233434,-174.64627088,0.00013999,2]
[331678914,1720630233444,-500.0,0.00013999,2]
[331678915,1720630233454,-500.0,0.00013999,2]
[331678916,1720630233467,-193.8987776,0.00013999,2]
[331678917,1720630233478,-385.29,0.00013999,2]
[331678919,1720630233488,-500.0,0.00013999,2]
[331678921,1720630233499,-500.0,0.00013999,2]
[331678922,1720630233509,-500.0,0.00013999,2]
[331678923,1720630233520,-500.0,0.00013999,2]
[331678924,1720630233530,-500.0,0.00013999,2]
[331678925,1720630233540,-500.0,0.00013999,2]
[331678926,1720630233550,-500.0,0.00013999,2]
[331678927,1720630233560,-500.0,0.00013999,2]
[331678928,1720630233571,-500.0,0.00013999,2]
[331678929,1720630233581,-500.0,0.00013999,2]
[331678930,1720630233591,-500.0,0.00013999,2]
[331678931,1720630233600,-500.0,0.00013999,2]
[331678932,1720630233610,-500.0,0.00013999,2]
[331678933,1720630233619,-500.0,0.00013999,2]
[331678934,1720630233629,-500.0,0.00013999,2]
[331678935,1720630233641,-500.0,0.00013999,2]
[331678936,1720630233650,-500.0,0.00013999,2]
[331678937,1720630233659,-491.17968116,0.00013999,2]
[331678938,1720630233668,-500.0,0.00013999,2]
[331678939,1720630233678,-500.0,0.00013999,2]
[331678940,1720630233687,-500.0,0.00013999,2]
[331678941,1720630233696,-500.0,0.00013999,2]
[331678942,1720630233706,-500.0,0.00013999,2]
[331678943,1720630233715,-500.0,0.00013999,2]
[331678944,1720630234327,-500.0,0.00013999,2]
[331678945,1720630234345,-500.0,0.00013999,2]
[331678946,1720630234359,-500.0,0.00013999,2]
[331678947,1720630234369,-443.01128052,0.00013999,2]
[331678948,1720630234378,-500.0,0.00013999,2]
[331678949,1720630234390,-500.0,0.00013999,2]
[331678950,1720630234399,-776.96,0.00013999,2]
[331678951,1720630234408,-155.22029957,0.00013999,2]
[331678952,1720630234417,-500.0,0.00013999,2]
[331678953,1720630234426,-500.0,0.00013999,2]
[331678954,1720630234435,-465.26,0.00013999,2]
[331678955,1720630234444,-500.0,0.00013999,2]
[331678956,1720630234453,-500.0,0.00013999,2]
[331678957,1720630234463,-500.0,0.00013999,2]
[331678958,1720630234472,-566.75,0.00013999,2]
[331678959,1720630234482,-500.0,0.00013999,2]
[331678960,1720630234492,-500.0,0.00013999,2]
[331678961,1720630234500,-500.0,0.00013999,2]
[331678962,1720630234510,-494.86729482,0.00013999,2]
[331678963,1720630234519,-500.0,0.00013999,2]
[331678964,1720630234528,-466.7,0.00013999,2]
[331678965,1720630234537,-506.0,0.00014,2]
[331678966,1720630234547,-212738.69891127,0.00014,2]
[331678967,1720630234556,-108030.53614079,0.00014,2]
[331678968,1720630234570,-707.07731665,0.00014,2]
[331678969,1720630234581,-629.99914214,0.00014,2]
[331678970,1720630234592,-1414.36815207,0.00014,2]
[331678971,1720630234604,-376.28217556,0.00014,2]
[331678972,1720630234615,-595.5625,0.00014,2]
[331678973,1720630234638,-4431.66,0.00014,2]
[331678981,1720630238040,-148.72672749,0.00013999,2]
[331678982,1720630238196,-351.27327251,0.00013999,2]
[331678983,1720630238207,-500.0,0.00013999,2]
[331678984,1720630238217,-3408.70054899,0.00014,2]
[331678985,1720630238229,-1275.15327242,0.00014,2]
[331678986,1720630238313,-12783.34673262,0.00014,2]
[331678987,1720630238325,-313.999999,0.00014,2]
[331678988,1720630238371,-510.12408001,0.00014,2]
[331678989,1720630238383,-4883.23432975,0.00014,2]
[331678990,1720630238434,-365.32258695,0.00014,2]
[331678992,1720630238447,-14989.5629967,0.00014,2]
[331678995,1720630238463,-4719.99002681,0.00014,2]
[331679140,1720630240060,-4023.30826427,0.00014,2]
[331679211,1720630240713,-807.73443717,0.00014,2]
[331679214,1720630240730,-381182.14963274,0.00014,2]
[331679216,1720630240739,-425920.75418502,0.00014,2]
[331679220,1720630240775,-574.92905729,0.00014,2]
[331679223,1720630240786,-280.34733126,0.00014,2]
[331679225,1720630240798,-24929.11631104,0.00014,2]
[331679227,1720630240810,-31638.86863061,0.00014,2]
[331679229,1720630240822,-670.0,0.00014,2]
[331679478,1720630243145,-5604.72198332,0.00014,2]
[331679481,1720630243157,-345.30254868,0.00014,2]
[331679492,1720630243254,-443.4506406,0.00014,2]
[331679494,1720630243267,-930.552031,0.00014,2]
[331679496,1720630243280,-6014.99120051,0.00014,2]
[331679506,1720630243368,-63975.57624006,0.00014,2]
[331679509,1720630243381,-1383.95848256,0.00014,2]
[331679511,1720630243393,-378.703701,0.00014,2]
[331679513,1720630243405,-4143.31,0.00014,2]
[331679517,1720630243426,-582.6273951,0.00014,2]
[331679524,1720630243487,-293.80853246,0.00014,2]
[331679526,1720630243499,-1728.53770147,0.00014,2]
[331679531,1720630243545,-623.2797952,0.00014,2]
[331679534,1720630243556,-655.16092701,0.00014,2]
[331679536,1720630243567,-633.56217276,0.00014,2]
[331679828,1720630246191,-500.0,0.00013999,2]
[331679830,1720630246201,-49668.31800085,0.00014,2]
[331679832,1720630246213,-24744.4,0.00014,2]
[331679834,1720630246224,-520.38152683,0.00014,2]
[331679836,1720630246236,-393.05071,0.00014,2]
[331679839,1720630246248,-17994.64284803,0.00014,2]
[331679846,1720630246308,-521.169303,0.00014,2]
[331679848,1720630246319,-510.7888358,0.00014,2]
[331679851,1720630246421,-309.37401327,0.00014,2]
[331679852,1720630246432,-3776.645238,0.00014,2]
[331679853,1720630246479,-1853.9365,0.00014,2]
[331679854,1720630246491,-3795.64476265,0.00014,2]
[331680019,1720630341052,500.0,0.00027,120]
[331680020,1720630347548,500.0,0.00027,120]
[331680021,1720630351390,150.0,0.00026836,120]
[331680022,1720630354597,500.0,0.00027,120]
[331680023,1720630358978,500.0,0.00027,120]
[331680024,1720630530933,150.0,0.00026792,120]
[331680025,1720630641999,398.78,0.00010883,2]
[331680026,1720630666198,500.0,0.00027,120]
[331680027,1720630674570,500.0,0.00027,120]
[331680028,1720630677212,175.85449639,0.00010883,2]
[331680029,1720630681015,500.0,0.00027,120]
[331680033,1720630799073,500.0,0.00027,120]
[331680034,1720630806302,500.0,0.00027,120]
[331680035,1720630813518,500.0,0.00027,120]
[331680036,1720630850492,500.0,0.00027,120]
[331680037,1720630860909,500.0,0.00027,120]
[331680039,1720630942383,155.0,0.00011199,2]
[331680040,1720630961710,9072.5380765,0.00011199,2]
[331680042,1720631035449,500.0,0.00027,120]
[331680043,1720631045710,500.0,0.00027,120]
[331680044,1720631064733,155.1643727,0.00011199,2]
[331680045,1720631082021,666.19247465,0.00011199,2]
[331680046,1720631097118,1782.57534508,0.00011199,2]
[331680047,1720631105013,350.14808905,0.00011199,2]
[331680048,1720631146741,1800.47859652,0.00011199,2]
[331680049,1720631209032,294.73982895,0.00011199,2]
[331680050,1720631225027,310.0,0.00011199,2]
[331680051,1720631228760,11198.59888008,0.00011199,2]
[331680120,1720631274846,378.84,0.0001073,2]
[331680121,1720631351926,1854.76477284,0.00011199,2]
[331680122,1720631390860,570.32501093,0.00011199,2]
[331680123,1720631421880,210.53515986,0.00011199,2]
[331680128,1720631432190,-7644.963802,0.00012177,2]
[331680129,1720631432202,-791.0,0.00012239,2]
[331680130,1720631432211,-168.0,0.00012301,2]
[331680131,1720631432221,-320.61861604,0.00012302,2]
[331680132,1720631432230,-300.0,0.00012593,2]
[331680133,1720631432240,-10147.64,0.00012594,2]
[331680134,1720631432249,-150.0,0.000126,2]
[331680135,1720631432259,-1000.0,0.00012606,2]
[331680136,1720631432267,-551.38,0.00012608,2]
[331680137,1720631432276,-560.62,0.00012668,2]
[331680138,1720631432286,-275.04,0.00012672,2]
[331680139,1720631432295,-210.43,0.00012682,2]
[331680140,1720631432304,-250.0,0.00012699,2]
[331680141,1720631432313,-499.99,0.00012708,2]
[331680142,1720631432322,-1556.34,0.00012708,2]
[331680143,1720631432331,-226.14,0.00012778,2]
[331680144,1720631432341,-416.37,0.00012778,2]
[331680145,1720631432350,-378.84,0.00012994,2]
[331680146,1720631432360,-300.0,0.000131,4]
[331680147,1720631432369,-600.0,0.000132,4]
[331680148,1720631432378,-151.0,0.00013272,2]
[331680149,1720631432388,-900.0,0.000133,4]
[331680150,1720631432397,-306.745989,0.00013316,2]
[331680151,1720631432406,-253.919604,0.00013316,2]
[331680152,1720631432415,-150.762748,0.00013316,2]
[331680153,1720631432424,-1300.0,0.000134,4]
[331680154,1720631432434,-150.0,0.00013447,2]
[331680155,1720631432443,-89994.0,0.00013448,2]
[331680156,1720631432452,-2084.23631615,0.00013472,2]
[331680157,1720631432461,-306.745989,0.00013482,2]
[331680158,1720631432470,-1600.0,0.000135,4]
[331680159,1720631432479,-960.43759767,0.00013574,2]
[331680160,1720631432489,-300.0,0.000136,4]
[331680162,1720631432498,-306.745989,0.00013649,2]
[331680164,1720631432507,-1500.0,0.00013699,5]
[331680166,1720631432515,-271.15,0.00013699,2]
[331680168,1720631432524,-300.0,0.000137,5]
[331680170,1720631432534,-385.31605884,0.00013766,2]
[331680172,1720631432543,-300.0,0.000138,5]
[331680174,1720631432552,-306.745989,0.00013815,2]
[331680176,1720631432562,-420.0,0.00013816,2]
[331680178,1720631432571,-425.81921,0.0001386,2]
[331680180,1720631432580,-425.8192,0.0001387,2]
[331680182,1720631432589,-325.99939,0.0001388,2]
[331680184,1720631432598,-463.82651568,0.00013899,2]
[331680186,1720631432607,-476.03363013,0.00013899,2]
[331680188,1720631432616,-477.06173874,0.00013899,2]
[331680190,1720631432626,-463.8265156,0.00013899,2]
[331680192,1720631432635,-463.8265156,0.00013899,2]
[331680194,1720631432646,-463.8265156,0.00013899,2]
[331680196,1720631432655,-463.8265156,0.00013899,2]
[331680198,1720631432664,-463.8265156,0.000139,2]
[331680200,1720631432673,-463.8265156,0.000139,2]
[331680202,1720631432683,-559.648773,0.000139,2]
[331680204,1720631432692,-342.586,0.000139,2]
[331680206,1720631432701,-726.69164422,0.000139,2]
[331680224,1720631433248,-694.34005578,0.000139,2]
[331680225,1720631433258,-1235.6588,0.000139,2]
[331680226,1720631433268,-463.8265156,0.000139,2]
[331680227,1720631433278,-463.8265156,0.000139,2]
[331680228,1720631433287,-330.94108364,0.000139,2]
[331680229,1720631433297,-300.0,0.000139,5]
[331680230,1720631433307,-222.49891506,0.000139,2]
[331680231,1720631433316,-327.00590479,0.000139,2]
[331680232,1720631433325,-538.36765014,0.000139,2]
[331680233,1720631433335,-463.8265156,0.000139,2]
[331680234,1720631433345,-559.648773,0.000139,2]
[331680235,1720631433354,-425.81921,0.0001391,2]
[331680236,1720631433364,-325.99939,0.0001396,2]
[331680237,1720631433374,-150.762748,0.00013981,2]
[331680238,1720631433383,-306.745989,0.00013981,2]
[331680239,1720631433395,-176.22964096,0.00013989,2]
[331680240,1720631433404,-254.9346316,0.00013997,2]
[331680241,1720631433413,-150.01,0.00013999,2]
[331680242,1720631433422,-5929.00898874,0.00013999,2]
[331680243,1720631433431,-500.0,0.00013999,2]
[331680244,1720631433442,-500.0,0.00013999,2]
[331680245,1720631433451,-537.99,0.00013999,2]
[331680246,1720631433461,-376.93,0.00013999,2]
[331680247,1720631433470,-187.48,0.00013999,2]
[331680248,1720631433483,-500.0,0.00013999,2]
[331680249,1720631433493,-363.74098293,0.00013999,2]
[331680250,1720631433502,-500.0,0.00013999,2]
[331680251,1720631433511,-1118.05,0.00013999,2]
[331680252,1720631433521,-503.06,0.00013999,2]
[331680253,1720631433531,-484.8,0.00013999,2]
[331680254,1720631433540,-500.0,0.00013999,2]
[331680255,1720631433549,-500.0,0.00013999,2]
[331680256,1720631433558,-327.319999,0.00013999,2]
[331680257,1720631433567,-500.0,0.00013999,2]
[331680258,1720631433577,-465.96070401,0.00013999,2]
[331680259,1720631433586,-500.0,0.00013999,2]
[331680260,1720631433595,-500.0,0.00013999,2]
[331680261,1720631433605,-500.0,0.00013999,2]
[331680262,1720631433615,-500.0,0.00013999,2]
[331680263,1720631433624,-500.0,0.00013999,2]
[331680264,1720631433634,-500.0,0.00013999,2]
[331680265,1720631433644,-549.28,0.00013999,2]
[331680266,1720631433654,-564.0,0.00013999,2]
[331680267,1720631433663,-500.0,0.00013999,2]
[331680268,1720631433672,-500.0,0.00013999,2]
[331680269,1720631433681,-500.0,0.00013999,2]
[331680270,1720631433691,-500.0,0.00013999,2]
[331680271,1720631433699,-500.0,0.00013999,2]
[331680272,1720631433709,-156.74568444,0.00013999,2]
[331680273,1720631433718,-500.0,0.00013999,2]
[331680274,1720631433727,-500.0,0.00013999,2]
[331680275,1720631433736,-500.0,0.00013999,2]
[331680276,1720631433745,-500.0,0.00013999,2]
[331680277,1720631433754,-500.0,0.00013999,2]
[331680278,1720631433763,-500.0,0.00013999,2]
[331680279,1720631433773,-375.57590131,0.00013999,2]
[331680280,1720631433782,-500.0,0.00013999,2]
[331680281,1720631433791,-500.0,0.00013999,2]
[331680282,1720631433800,-500.0,0.00013999,2]
[331680283,1720631433810,-500.0,0.00013999,2]
[331680284,1720631433819,-500.0,0.00013999,2]
[331680285,1720631433828,-577.48788349,0.00013999,2]
[331680286,1720631433839,-500.0,0.00013999,2]
[331680287,1720631433848,-500.0,0.00013999,2]
[331680288,1720631433857,-500.0,0.00013999,2]
[331680289,1720631433867,-500.0,0.00013999,2]
[331680290,1720631433876,-453.54862207,0.00013999,2]
[331680291,1720631433886,-500.0,0.00013999,2]
[331680292,1720631433896,-500.0,0.00013999,2]
[331680293,1720631433906,-500.0,0.00013999,2]
[331680294,1720631433915,-500.0,0.00013999,2]
[331680295,1720631433924,-500.0,0.00013999,2]
[331680296,1720631433934,-500.0,0.00013999,2]
[331680297,1720631433945,-500.0,0.00013999,2]
[331680298,1720631433955,-521.57788661,0.00013999,2]
[331680299,1720631433965,-500.0,0.00013999,2]
[331680300,1720631433975,-500.0,0.00013999,2]
[331680301,1720631433985,-500.0,0.00013999,2]
[331680302,1720631433994,-500.0,0.00013999,2]
[331680303,1720631434004,-552.09,0.00013999,2]
[331680304,1720631434013,-500.0,0.00013999,2]
[331680305,1720631434022,-500.0,0.00013999,2]
[331680306,1720631434031,-500.0,0.00013999,2]
[331680307,1720631434040,-1205.9,0.00013999,2]
[331680308,1720631434052,-500.0,0.00013999,2]
[331680309,1720631434062,-500.0,0.00013999,2]
[331680310,1720631434072,-500.0,0.00013999,2]
[331680311,1720631434081,-500.0,0.00013999,2]
[331680312,1720631434090,-500.0,0.00013999,2]
[331680313,1720631434100,-500.0,0.00013999,2]
[331680314,1720631434109,-500.0,0.00013999,2]
[331680315,1720631434119,-500.0,0.00013999,2]
[331680316,1720631434128,-500.0,0.00013999,2]
[331680317,1720631434137,-500.0,0.00013999,2]
[331680318,1720631434148,-500.0,0.00013999,2]
[331680319,1720631434157,-500.0,0.00013999,2]
[331680320,1720631434166,-500.0,0.00013999,2]
[331680321,1720631434175,-500.0,0.00013999,2]
[331680322,1720631434185,-500.0,0.00013999,2]
[331680323,1720631434195,-500.0,0.00013999,2]
[331680324,1720631434205,-500.0,0.00013999,2]
[331680325,1720631434215,-500.0,0.00013999,2]
[331680326,1720631434225,-500.0,0.00013999,2]
[331680327,1720631434235,-500.0,0.00013999,2]
[331680328,1720631434245,-500.0,0.00013999,2]
[331680329,1720631434256,-500.0,0.00013999,2]
[331680330,1720631434265,-500.0,0.00013999,2]
[331680331,1720631434275,-366.99348005,0.00013999,2]
[331680332,1720631434284,-500.0,0.00013999,2]